bitfinex-derivatives/quotes_SOLF0:USTF0_20250530
["timestamp","ask_amount","ask_price","bid_price","bid_amount"]
[1748613070348,0.04054656,161.72,161.68,35.72]
[1748613070740,6.1821,161.71,161.68,35.72]
[1748613070944,0.04054656,161.72,161.68,35.72]
[1748613071345,6.1823,161.71,161.68,35.72]
[1748613071649,0.04054656,161.72,161.68,35.72]
[1748613073248,6.22254656,161.72,161.68,41.9029]
[1748613073452,6.22254656,161.72,161.68,35.72]
[1748613073749,0.04054656,161.72,161.69,6.1825]
[1748613073949,0.04054656,161.72,161.68,35.72]
[1748613074445,6.22224656,161.72,161.68,35.72]
[1748613074650,0.04054656,161.72,161.68,35.72]
[1748613074946,6.1828,161.69,161.68,35.72]
[1748613075150,0.04054656,161.72,161.68,35.72]
[1748613076145,6.1821,161.71,161.68,35.72]
[1748613076350,0.04054656,161.72,161.68,35.72]
[1748613076751,6.1821,161.71,161.68,41.903]
[1748613078253,0.04054656,161.72,161.68,35.72]
[1748613078649,0.04054656,161.72,161.69,6.1825]
[1748613079350,0.04054656,161.72,161.68,35.72]
[1748613080353,6.1821,161.71,161.68,41.9031]
[1748613081151,0.04054656,161.72,161.68,35.72]
[1748613081655,0.04054656,161.72,161.71,6.182]
[1748613081955,0.04054656,161.72,161.7,0.0458574]
[1748613082152,0.04054656,161.72,161.71,6.182]
[1748613082753,2.159,161.8,161.73,6.181]
[1748613083151,2.159,161.8,161.71,2.0633]
[1748613083656,6.1807,161.75,161.74,0.04018372]
[1748613084152,0.04232179,161.77,161.74,0.04018372]
[1748613084356,0.04232179,161.77,161.74,6.22098372]
[1748613084550,0.04232179,161.77,161.74,0.04018372]
[1748613084750,36.28,161.85,161.78,6.1791]
[1748613085157,36.28,161.85,161.76,36.28]
[1748613085750,0.04122901,161.82,161.79,0.04563729]
[1748613085955,6.1786,161.8,161.79,0.04563729]
[1748613088164,6.1806,161.75,161.72,36.26]
[1748613088555,6.1803,161.76,161.72,36.26]
[1748613088756,38.3129,161.81,161.72,36.26]
[1748613088956,38.3129,161.81,161.74,6.1807]
[1748613089266,6.18,161.77,161.76,0.04198433]
[1748613091571,6.1812,161.73,161.72,36.26]
[1748613091872,4.2108,161.8,161.72,36.26]
[1748613092070,6.181,161.74,161.72,36.26]
[1748613092274,4.2108,161.8,161.72,36.26]
[1748613092466,6.1805,161.75,161.74,0.04549487]
[1748613094567,36.26,161.77,161.66,2.1262]
[1748613094972,36.26,161.77,161.65,36.26]
[1748613095181,36.26,161.77,161.65,42.4441]
[1748613095482,36.26,161.77,161.65,36.26]
[1748613095677,6.1824,161.7,161.69,0.04169714]
[1748613096682,36.26,161.72,161.62,4.0275]
[1748613096881,4.0676,161.71,161.6,252.06773878]
[1748613097280,6.1858,161.61,161.6,215.80773878]
[1748613097482,36.26,161.66,161.56,40.4593]
[1748613097679,6.1862,161.6,161.59,0.04323133]
[1748613098473,0.04703381,161.63,161.59,0.04323133]
[1748613098673,0.04703381,161.63,161.6,6.1859]
[1748613098981,0.04703381,161.63,161.59,0.04323133]
[1748613099480,6.23233381,161.63,161.59,6.22973133]
[1748613099977,0.04703381,161.63,161.59,0.04323133]
[1748613100478,6.1855,161.62,161.59,0.04323133]
[1748613100676,0.04703381,161.63,161.59,0.04323133]
[1748613101777,6.1856,161.62,161.59,0.04323133]
[1748613103580,0.04703381,161.63,161.59,0.04323133]
[1748613103982,6.1862,161.6,161.59,0.04323133]
[1748613104583,6.186,161.61,161.59,0.04323133]
[1748613104888,0.04703381,161.63,161.59,0.04323133]
[1748613105091,6.1855,161.62,161.59,0.04323133]
[1748613105293,0.04703381,161.63,161.59,0.04323133]
[1748613105789,0.04703381,161.63,161.47,540.4148]
[1748613106091,17.74607123,161.66,161.48,166.18]
[1748613106092,36.28,161.62,161.48,166.18]
[1748613106293,6.1872,161.58,161.54,6.1885]
[1748613106593,36.28,161.62,161.5,17.74607123]
[1748613106786,0.04556726,161.58,161.56,6.1876]
[1748613106985,0.04556726,161.58,161.53,37.06]
[1748613108190,37.06,161.66,161.53,37.06]
[1748613108394,37.06,161.68,161.61,6.1856]
[1748613108987,37.06,161.68,161.57,37.06]
[1748613109194,0.04280074,161.64,161.61,0.04595159]
[1748613110393,6.1855,161.62,161.61,0.04595159]
[1748613110783,6.1855,161.62,161.55,4.293]
[1748613110784,0.04280074,161.64,161.43,12.385]
[1748613110986,37.06,161.64,161.5,4.1592]
[1748613111291,37.06,161.64,161.57,6.1872]
[1748613111490,6.1862,161.6,161.57,6.1872]
[1748613111688,6.1862,161.6,161.54,37.06]
[1748613111892,0.04586915,161.59,161.56,6.1875]
[1748613112088,6.23246915,161.59,161.54,37.06]
[1748613112489,0.04586915,161.59,161.54,37.06]
[1748613112793,6.1873,161.58,161.54,37.06]
[1748613113185,0.04586915,161.59,161.38,546.6893]
[1748613113391,0.04737534,161.5,161.44,21.86637123]
[1748613113591,0.04249376,161.49,161.48,6.1908]
[1748613113790,0.03903437,161.5,161.45,39.0708]
[1748613113996,0.04159661,161.49,161.45,39.0708]
[1748613114195,0.04159661,161.49,161.48,6.1908]
[1748613114196,0.04131458,161.49,161.48,6.1908]
[1748613114493,0.04131458,161.49,161.45,39.0708]
[1748613115497,0.04131458,161.49,161.48,6.1908]
[1748613115891,0.04131458,161.49,161.44,2.0245]
[1748613116089,0.04131458,161.49,161.41,37.08]
[1748613116294,0.04067101,161.47,161.41,37.08]
[1748613116794,6.1918,161.46,161.41,37.08]
[1748613116994,0.04067101,161.47,161.41,37.08]
[1748613117399,0.04067101,161.47,161.24,18.5994]
[1748613117598,0.04631616,161.38,161.31,4.0797]
[1748613117899,37.08,161.46,161.32,37.08]
[1748613117900,0.0404189,161.36,161.32,37.08]
[1748613118093,0.03935989,161.36,161.32,37.08]
[1748613118296,0.03935989,161.36,161.35,6.1958]
[1748613119397,6.1637,161.45,161.32,54.82607123]
[1748613119398,6.1928,161.43,161.32,54.82607123]
[1748613119600,6.1637,161.45,161.34,17.74607123]
[1748613119901,6.1637,161.45,161.35,2.1082]
[1748613120400,0.03977374,161.42,161.38,0.04032604]
[1748613120698,0.03977374,161.42,161.32,37.08]
[1748613120999,37.08,161.44,161.32,37.08]
[1748613121503,17.87017708,161.38,161.19,38.54]
[1748613121698,0.0441225,161.3,161.26,6.199]
[1748613121897,4.1219,161.36,161.21,6.3417]
[1748613122093,0.03915076,161.3,161.21,6.3417]
[1748613122692,6.199,161.27,161.21,6.3417]
[1748613122893,0.04766685,161.26,161.21,6.3417]
[1748613123204,0.04766685,161.26,160.97,3226.6711]
[1748613123398,0.04203643,161.21,161.13,6.3417]
[1748613123595,0.04203643,161.21,161.13,46.3617]
[1748613124399,0.04203643,161.21,161.14,40.04]
[1748613125503,0.04203643,161.21,161.18,6.2022]
[1748613125705,0.04203643,161.21,161.14,40.04]
[1748613125905,0.04203643,161.21,161.18,6.2023]
[1748613126105,0.04203643,161.21,161.14,40.04]
[1748613126904,0.04203643,161.21,161.2,6.2016]
[1748613127908,0.04203643,161.21,161.12,574.72]
[1748613128110,0.04203643,161.21,161.14,4.1304]
[1748613128301,0.04203643,161.21,161.19,6.2019]
[1748613128606,0.04203643,161.21,161.14,4.1304]
[1748613128607,0.04203643,161.21,161.17,40.06]
[1748613129108,0.04203643,161.21,161.2,6.2016]
[1748613129909,0.04203643,161.21,161.19,6.2018]
[1748613130211,0.04203643,161.21,161.17,40.06]
[1748613130505,0.04203643,161.21,161.14,4.1304]
[1748613130506,0.04203643,161.21,161.15,40.08]
[1748613131095,0.04203643,161.21,161.2,6.2016]
[1748613131307,44.3629,161.3,161.2,40.08]
[1748613131806,44.3629,161.3,161.23,6.2001]
[1748613132007,6.1985,161.28,161.23,6.2001]
[1748613132201,44.3629,161.3,161.2,40.08]
[1748613132409,0.04459331,161.27,161.24,0.04203643]
[1748613132903,0.04459331,161.27,161.24,6.24203643]
[1748613133110,0.04459331,161.27,161.24,0.04203643]
[1748613133609,6.24349331,161.27,161.24,0.04203643]
[1748613133908,0.04459331,161.27,161.24,0.04203643]
[1748613134108,6.1963,161.34,161.25,40.08]
[1748613134306,44.2492,161.38,161.25,40.08]
[1748613134507,44.2492,161.38,161.29,6.1598543]
[1748613134705,44.2492,161.38,161.25,40.08]
[1748613134903,27.40390335,161.37,161.25,46.2796]
[1748613135104,0.04238293,161.33,161.29,0.04102647]
[1748613136308,6.23918293,161.33,161.29,0.04102647]
[1748613136703,0.04238293,161.33,161.29,0.04102647]
[1748613137107,0.04238293,161.33,161.31,6.197]
[1748613137305,0.04238293,161.33,161.29,0.04102647]
[1748613137714,0.04238293,161.33,161.3,6.1976]
[1748613138017,0.04238293,161.33,161.29,0.04102647]
[1748613139209,0.04238293,161.33,161.31,6.1973]
[1748613139816,0.04238293,161.33,161.32,6.197]
[1748613140119,46.2509,161.41,161.3,4.0927]
[1748613140813,6.1948,161.38,161.3,4.0927]
[1748613141003,0.03937296,161.36,161.32,0.03921235]
[1748613142309,6.1965,161.34,161.32,0.03921235]
[1748613143102,0.03937296,161.36,161.32,0.03921235]
[1748613144214,6.1966,161.33,161.32,0.03921235]
[1748613144513,0.03937296,161.36,161.28,40.08]
[1748613144710,58.638,161.41,161.28,40.08]
[1748613145209,12.3879,161.4,161.28,40.08]
[1748613145407,6.1981,161.29,161.28,40.08]
[1748613145608,0.04686148,161.3,161.28,40.08]
[1748613145815,0.04328872,161.31,161.28,40.08]
[1748613146003,0.04328872,161.31,161.29,6.1981]
[1748613146307,0.04328872,161.31,161.28,40.12580669]
[1748613146515,0.04328872,161.31,161.28,46.32410669]
[1748613146701,0.04328872,161.31,161.28,40.12580669]
[1748613146906,6.198,161.3,161.28,40.12580669]
[1748613147211,0.04328872,161.31,161.28,40.12580669]
[1748613147414,6.1978,161.3,161.28,40.12580669]
[1748613147815,0.04328872,161.31,161.28,40.12580669]
[1748613149308,0.04328872,161.31,161.28,46.32420669]
[1748613149710,0.04328872,161.31,161.29,6.1979]
[1748613150016,0.04328872,161.31,161.28,40.12580669]
[1748613150516,0.04328872,161.31,161.28,46.32410669]
[1748613150717,0.04328872,161.31,161.28,40.12580669]
[1748613152617,0.04328872,161.31,161.3,6.1977]
[1748613153022,6.1959,161.35,161.31,6.197]
[1748613153313,40.08,161.4,161.31,6.197]
[1748613153518,6.1961,161.35,161.28,40.08]
[1748613153712,40.08,161.4,161.28,40.08]
[1748613153918,6.196,161.35,161.28,57.9415602]
[1748613154106,0.04690974,161.33,161.31,6.1972]
[1748613154612,0.04690974,161.33,161.32,6.197]
[1748613154822,40.08,161.4,161.31,2.1617]
[1748613155609,40.08,161.4,161.3,6.1976]
[1748613155813,0.04747771,161.37,161.33,0.04212363]
[1748613158526,0.04747771,161.37,161.33,41.16212363]
[1748613158721,41.12,161.44,161.33,59.02368383]
[1748613158913,149.06664071,161.47,161.37,17.8615602]
[1748613159119,47.5073,161.52,161.38,41.12]
[1748613159617,6.192,161.45,161.41,6.1934]
[1748613159824,0.04566731,161.47,161.43,0.04028511]
[1748613160024,0.04045018,161.47,161.43,0.04028511]
[1748613160617,6.1924,161.44,161.43,0.04028511]
[1748613161417,6.1921,161.45,161.43,0.04028511]
[1748613161614,0.04045018,161.47,161.43,0.04028511]
[1748613162019,6.1922,161.45,161.43,0.04028511]
[1748613162227,0.04045018,161.47,161.43,0.04028511]
[1748613162425,6.1924,161.44,161.43,0.04028511]
[1748613162725,0.04045018,161.47,161.43,0.04028511]
[1748613162926,6.23175018,161.47,161.43,0.04028511]
[1748613163123,0.04045018,161.47,161.43,0.04028511]
[1748613163323,0.04045018,161.47,161.43,41.16028511]
[1748613163524,0.04045018,161.47,161.44,6.1923]
[1748613163717,0.04045018,161.47,161.43,41.16028511]
[1748613164728,6.1924,161.44,161.43,41.16028511]
[1748613164919,6.1924,161.44,161.43,0.04028511]
[1748613166232,0.04045018,161.47,161.43,0.04028511]
[1748613166725,6.1924,161.44,161.43,0.04028511]
[1748613167123,0.04045018,161.47,161.43,0.04028511]
[1748613167828,6.1917,161.46,161.43,0.04028511]
[1748613168338,6.23175018,161.47,161.43,6.23268511]
[1748613168929,0.04045018,161.47,161.44,41.1]
[1748613169325,0.04045018,161.47,161.46,6.1916]
[1748613169524,0.04045018,161.47,161.44,45.4385]
[1748613170028,0.04045018,161.47,161.45,6.1917]
[1748613170224,0.04045018,161.47,161.44,45.4385]
[1748613170925,0.04045018,161.47,161.44,41.1]
[1748613172825,0.04045018,161.47,161.45,6.1919]
[1748613173125,0.04045018,161.47,161.44,41.1]
[1748613173326,53.4762,161.56,161.46,6.1913]
[1748613173527,55.549,161.56,161.46,6.1913]
[1748613173825,55.549,161.56,161.44,47.4068]
[1748613174327,0.04101966,161.52,161.48,0.04363295]
[1748613174525,6.1904,161.49,161.48,0.04363295]
[1748613175523,6.1902,161.5,161.48,0.04363295]
[1748613176124,6.1898,161.51,161.48,0.04363295]
[1748613176624,6.1898,161.51,161.48,6.23423295]
[1748613177023,6.1901,161.5,161.48,0.04363295]
[1748613177624,0.04101966,161.52,161.48,0.04363295]
[1748613177625,6.1904,161.49,161.48,0.04363295]
[1748613178931,0.04101966,161.52,161.48,0.04363295]
[1748613179925,0.04101966,161.52,161.51,6.1897]
[1748613180227,0.04101966,161.52,161.49,41.08]
[1748613180427,0.04101966,161.52,161.49,47.2701]
[1748613180824,0.04101966,161.52,161.49,41.08]
[1748613181919,0.04101966,161.52,161.51,6.1897]
[1748613182624,0.04101966,161.52,161.5,6.1899]
[1748613183426,0.04101966,161.52,161.49,47.2703]
[1748613183632,0.04101966,161.52,161.49,41.08]
[1748613183933,0.04101966,161.52,161.48,0.04363295]
[1748613185129,6.23051966,161.52,161.49,6.1902]
[1748613185633,0.04101966,161.52,161.48,0.04363295]
[1748613185832,0.04101966,161.52,161.49,6.1904]
[1748613186130,0.04101966,161.52,161.48,0.04363295]
[1748613186332,6.1904,161.49,161.48,0.04363295]
[1748613187532,6.1902,161.5,161.48,0.04363295]
[1748613188231,0.04101966,161.52,161.48,0.04363295]
[1748613189723,6.1904,161.49,161.48,0.04363295]
[1748613189929,0.04101966,161.52,161.48,0.04363295]
[1748613192634,0.04101966,161.52,161.51,6.1897]
[1748613195344,0.04101966,161.52,161.48,2.01473295]
[1748613196942,0.04101966,161.52,161.51,6.1897]
[1748613197446,0.04101966,161.52,161.48,2.01473295]
[1748613197645,0.04101966,161.52,161.48,41.04363295]
[1748613198046,6.23041966,161.52,161.49,6.1904]
[1748613199338,0.04101966,161.52,161.48,41.04363295]
[1748613199947,0.04101966,161.52,161.51,6.1897]
[1748613201254,6.1875,161.57,161.48,58.90519315]
[1748613201446,43.0225,161.61,161.48,58.90519315]
[1748613201654,6.1875,161.57,161.54,6.1883]
[1748613202154,6.23497853,161.57,161.54,6.23436443]
[1748613202354,6.1878,161.56,161.54,0.04606443]
[1748613203155,6.23487853,161.57,161.54,0.04606443]
[1748613203556,0.04747853,161.57,161.54,0.04606443]
[1748613203967,0.04747853,161.57,161.54,41.04606443]
[1748613204167,0.04747853,161.57,161.56,6.1878]
[1748613204471,2.1145,161.62,161.54,41.04606443]
[1748613204665,2.0016,161.65,161.54,41.04606443]
[1748613204869,6.1848,161.64,161.54,176.2]
[1748613205068,2.0016,161.65,161.56,17.8615602]
[1748613205365,6.1863,161.6,161.54,710.8]
[1748613205570,0.04516598,161.59,161.55,0.04111761]
[1748613206468,0.04516598,161.59,161.57,6.1873]
[1748613206868,0.04516598,161.59,161.55,0.04111761]
[1748613208370,0.04516598,161.59,161.57,6.1871]
[1748613208871,0.04516598,161.59,161.58,6.187]
[1748613210170,212.75923144,161.66,161.6,6.1862]
[1748613210869,212.75923144,161.66,161.59,40.98]
[1748613210870,212.75923144,161.66,161.61,6.1858]
[1748613211175,4.1444,161.67,161.61,6.1858]
[1748613211372,4.1444,161.67,161.62,0.04729704]
[1748613211373,0.03942603,161.65,161.62,0.04729704]
[1748613212574,6.1851,161.63,161.62,0.04729704]
[1748613213074,0.03942603,161.65,161.62,0.04729704]
[1748613213775,6.1847,161.64,161.62,0.04729704]
[1748613214376,0.03942603,161.65,161.62,0.04729704]
[1748613214977,0.03942603,161.65,161.63,6.1849]
[1748613215176,0.03942603,161.65,161.62,0.04729704]
[1748613215475,6.22382603,161.65,161.62,0.04729704]
[1748613215678,0.03942603,161.65,161.62,0.04729704]
[1748613215977,6.22392603,161.65,161.62,6.23259704]
[1748613216176,0.03942603,161.65,161.62,0.04729704]
[1748613216575,6.1847,161.64,161.62,0.04729704]
[1748613216876,0.03942603,161.65,161.62,0.04729704]
[1748613217075,6.1851,161.63,161.62,0.04729704]
[1748613218081,6.1849,161.64,161.62,0.04729704]
[1748613218881,6.1851,161.63,161.62,0.04729704]
[1748613219073,0.03942603,161.65,161.62,0.04729704]
[1748613219271,6.1849,161.64,161.62,0.04729704]
[1748613219482,0.03942603,161.65,161.62,0.04729704]
[1748613221476,0.03942603,161.65,161.63,6.1849]
[1748613221786,0.03942603,161.65,161.62,0.04729704]
[1748613222081,6.1849,161.64,161.62,0.04729704]
[1748613222682,6.1851,161.63,161.62,0.04729704]
[1748613222882,0.03942603,161.65,161.62,0.04729704]
[1748613223182,6.1849,161.64,161.62,0.04729704]
[1748613223880,6.1849,161.64,161.62,6.23279704]
[1748613224273,6.22392603,161.65,161.62,6.23279704]
[1748613224471,6.22392603,161.65,161.62,0.04729704]
[1748613225082,6.22392603,161.65,161.62,6.23259704]
[1748613225478,6.1847,161.64,161.62,6.23259704]
[1748613226081,6.1847,161.64,161.62,0.04729704]
[1748613226285,0.03942603,161.65,161.62,0.04729704]
[1748613226286,6.22392603,161.65,161.62,0.04729704]
[1748613226684,6.22392603,161.65,161.62,6.23249704]
[1748613226885,6.22392603,161.65,161.62,0.04729704]
[1748613227184,6.22392603,161.65,161.62,6.23259704]
[1748613227383,0.03942603,161.65,161.62,0.04729704]
[1748613227582,0.03942603,161.65,161.64,6.1847]
[1748613228085,0.03942603,161.65,161.62,0.04729704]
[1748613228280,0.03942603,161.65,161.63,6.1848]
[1748613228487,0.03942603,161.65,161.62,0.04729704]
[1748613228986,0.03942603,161.65,161.62,6.23249704]
[1748613229187,6.22392603,161.65,161.62,0.04729704]
[1748613229389,0.03942603,161.65,161.63,6.1851]
[1748613229590,0.03942603,161.65,161.62,0.04729704]
[1748613230788,6.21942603,161.65,161.53,41.7591]
[1748613230985,6.1868,161.59,161.56,6.1877]
[1748613231383,39.78,161.63,161.53,41.7591]
[1748613231692,6.1873,161.58,161.56,0.03961509]
[1748613232290,6.1874,161.57,161.56,0.03961509]
[1748613232686,6.1873,161.58,161.56,0.03961509]
[1748613233287,0.04265738,161.6,161.56,0.03961509]
[1748613233892,0.04265738,161.6,161.57,6.1871]
[1748613234491,6.1867,161.59,161.56,6.22721509]
[1748613236192,0.04265738,161.6,161.56,0.03961509]
[1748613236885,6.187,161.59,161.56,0.03961509]
[1748613237293,6.187,161.59,161.56,6.22721509]
[1748613237586,0.04265738,161.6,161.56,0.03961509]
[1748613237989,6.187,161.58,161.56,0.03961509]
[1748613238192,0.04265738,161.6,161.56,0.03961509]
[1748613238594,6.22905738,161.6,161.57,6.1873]
[1748613238795,0.04265738,161.6,161.56,10.71198157]
[1748613239395,0.04265738,161.6,161.59,6.1866]
[1748613240489,6.1844,161.65,161.62,6.1853]
[1748613240693,6.1844,161.65,161.59,10.67236648]
[1748613240694,39.78,161.68,161.59,10.67236648]
[1748613241393,0.04129373,161.65,161.62,0.04168261]
[1748613241582,6.22599373,161.65,161.62,6.22708261]
[1748613241984,0.04129373,161.65,161.62,0.04168261]
[1748613242189,6.1847,161.64,161.62,0.04168261]
[1748613242502,0.04129373,161.65,161.62,0.04168261]
[1748613242803,6.1851,161.63,161.62,0.04168261]
[1748613243298,6.1876,161.57,161.51,39.78]
[1748613243501,2.0048,161.62,161.5,50.45236648]
[1748613243691,6.188,161.56,161.52,6.1891]
[1748613244193,0.04105627,161.56,161.52,0.04099166]
[1748613244401,6.1885,161.55,161.52,0.04099166]
[1748613244993,6.22895627,161.56,161.52,6.23029166]
[1748613245192,6.22895627,161.56,161.52,0.04099166]
[1748613245490,0.04105627,161.56,161.52,0.04099166]
[1748613245688,6.1882,161.55,161.52,0.04099166]
[1748613245997,0.04105627,161.56,161.52,0.04099166]
[1748613246597,6.1882,161.55,161.52,0.04099166]
[1748613246800,0.04105627,161.56,161.52,0.04099166]
[1748613247195,6.1888,161.54,161.52,0.04099166]
[1748613247495,0.04105627,161.56,161.52,0.04099166]
[1748613248300,0.04105627,161.56,161.54,6.1883]
[1748613248699,0.04105627,161.56,161.54,6.1882]
[1748613252004,0.04105627,161.56,161.53,6.1887]
[1748613252495,6.22895627,161.56,161.52,0.04099166]
[1748613252702,6.22895627,161.56,161.53,6.1887]
[1748613253605,6.1882,161.55,161.52,6.23019166]
[1748613254998,6.1886,161.54,161.52,0.04099166]
[1748613255304,0.04105627,161.56,161.52,0.04099166]
[1748613256108,6.22905627,161.56,161.53,6.1888]
[1748613256305,0.04105627,161.56,161.52,0.04099166]
[1748613257108,6.1889,161.53,161.52,0.04099166]
[1748613259100,6.1887,161.54,161.52,0.04099166]
[1748613259301,2.1039,161.55,161.52,0.04099166]
[1748613259505,6.1889,161.53,161.52,0.04099166]
[1748613260509,6.1889,161.53,161.46,573.24]
[1748613260510,6.1905,161.49,161.46,573.24]
[1748613260699,6.1905,161.49,161.46,45.1715]
[1748613260898,43.0394,161.54,161.38,534.54]
[1748613261112,6.1918,161.46,161.43,6.1925]
[1748613261305,43.0394,161.54,161.4,38.98]
[1748613261504,6.1913,161.47,161.46,0.03934407]
[1748613262905,6.1909,161.48,161.46,0.03934407]
[1748613263313,0.04046895,161.49,161.46,0.03934407]
[1748613263808,0.04046895,161.49,161.47,6.1909]
[1748613264904,0.04046895,161.49,161.48,6.1908]
[1748613265207,0.04046895,161.49,161.46,0.03934407]
[1748613265609,0.04046895,161.49,161.47,6.1908]
[1748613266013,0.04046895,161.49,161.46,0.03934407]
[1748613266208,6.23106895,161.49,161.46,6.23074407]
[1748613266406,6.23106895,161.49,161.46,0.03934407]
[1748613266613,0.04046895,161.49,161.46,0.03934407]
[1748613266812,0.04046895,161.49,161.48,6.1908]
[1748613267315,0.04046895,161.49,161.46,0.03934407]
[1748613268210,6.1874,161.57,161.54,6.1883]
[1748613268404,1.9732,161.61,161.49,2.0637]
[1748613268611,1.9732,161.61,161.5,17.80762263]
[1748613268909,1.9732,161.61,161.49,2.0637]
[1748613269105,1.9732,161.61,161.49,19.87132263]
[1748613269311,0.04316281,161.57,161.53,0.0413929]
[1748613269507,6.23076281,161.57,161.54,6.1884]
[1748613269912,0.04316281,161.57,161.53,0.0413929]
[1748613270112,6.188,161.56,161.53,6.2301929]
[1748613270312,0.04316281,161.57,161.53,0.0413929]
[1748613270814,6.1885,161.54,161.53,0.0413929]
[1748613272609,6.1899,161.51,161.47,41.0334]
[1748613272814,4.1586,161.56,161.49,6.1902]
[1748613273113,4.1586,161.56,161.47,41.0334]
[1748613273314,6.1891,161.53,161.47,41.0334]
[1748613273517,4.1586,161.56,161.47,41.0334]
[1748613273715,0.04305941,161.53,161.5,0.04762143]
[1748613274315,6.23195941,161.53,161.5,0.04762143]
[1748613274617,0.04305941,161.53,161.5,0.04762143]
[1748613274809,0.04305941,161.53,161.52,6.1893]
[1748613275009,0.04305941,161.53,161.5,0.04762143]
[1748613275207,0.04305941,161.53,161.51,6.1896]
[1748613275814,0.04305941,161.53,161.5,0.04762143]
[1748613276418,0.04305941,161.53,161.51,6.1894]
[1748613276617,0.04305941,161.53,161.5,0.04762143]
[1748613276917,0.04305941,161.53,161.5,6.23752143]
[1748613277218,6.1895,161.52,161.5,0.04762143]
[1748613277515,0.04305941,161.53,161.5,0.04762143]
[1748613277516,0.04305941,161.53,161.5,6.23762143]
[1748613277716,6.23215941,161.53,161.5,6.23762143]
[1748613278018,0.04305941,161.53,161.5,0.04762143]
[1748613280212,0.04305941,161.53,161.52,6.1893]
[1748613280418,0.04305941,161.53,161.5,0.04762143]
[1748613280718,0.04305941,161.53,161.51,6.1895]
[1748613280919,0.04305941,161.53,161.5,0.04762143]
[1748613282717,6.1897,161.51,161.5,0.04762143]
[1748613284621,6.1895,161.52,161.5,0.04762143]
[1748613284823,0.04305941,161.53,161.5,0.04762143]
[1748613285121,6.1897,161.51,161.5,0.04762143]
[1748613286220,6.191,161.48,161.46,6.1915]
[1748613286425,39.0,161.57,161.44,40.7947]
[1748613286622,6.1904,161.49,161.44,40.7947]
[1748613286921,39.0,161.57,161.44,40.7947]
[1748613287122,39.0,161.57,161.49,0.04400824]
[1748613287123,0.04068539,161.52,161.49,0.04400824]
[1748613288025,6.1904,161.5,161.49,0.04400824]
[1748613289326,2.0469,161.51,161.44,38.64]
[1748613289713,2.0469,161.51,161.46,6.1915]
[1748613289920,38.64,161.52,161.44,49.33265335]
[1748613290122,38.64,161.52,161.46,6.1913]
[1748613290322,0.04411931,161.51,161.47,0.04105574]
[1748613290520,6.1903,161.5,161.47,0.04105574]
[1748613290728,0.04411931,161.51,161.47,0.04105574]
[1748613290928,6.1908,161.48,161.47,0.04105574]
[1748613291621,0.04411931,161.51,161.47,0.04105574]
[1748613292227,0.04411931,161.51,161.48,6.1906]
[1748613292228,6.23401931,161.51,161.48,6.1906]
[1748613292416,0.04411931,161.51,161.48,6.1906]
[1748613292725,6.1905,161.49,161.47,0.04105574]
[1748613292919,0.04411931,161.51,161.47,0.04105574]
[1748613293227,6.1904,161.5,161.47,0.04105574]
[1748613293426,0.04411931,161.51,161.47,0.04105574]
[1748613294026,6.1908,161.48,161.47,0.04105574]
[1748613296734,6.1905,161.49,161.47,0.04105574]
[1748613297536,6.1908,161.48,161.47,0.04105574]
[1748613300134,6.1926,161.44,161.4,40.7322]
[1748613300339,38.64,161.52,161.4,12.78485335]
[1748613300635,38.64,161.52,161.42,6.1929]
[1748613300836,38.64,161.52,161.4,12.78485335]
[1748613301142,6.2304015,161.48,161.46,6.1916]
[1748613301634,0.0393015,161.48,161.45,0.04326506]
[1748613302633,6.1916,161.46,161.45,0.04326506]
[1748613302936,6.193,161.43,161.4,6.1939]
[1748613303340,10.69265335,161.51,161.39,75.49850335]
[1748613303741,38.64,161.52,161.39,75.49850335]
[1748613303940,0.04264453,161.47,161.44,0.04416556]
[1748613304344,6.192,161.45,161.44,0.04416556]
[1748613305435,6.1939,161.4,161.39,26.16585]
[1748613307141,6.1939,161.4,161.19,43.44480908]
[1748613307142,6.2,161.4,161.27,572.36]
[1748613307347,6.1597,161.39,161.29,4.0344]
[1748613307543,6.1597,161.39,161.27,572.36]
[1748613307742,6.197,161.32,161.29,6.198]